fUST/lending_fUST_20251104
["ID","MTS","AMOUNT","RATE_DAILY","PERIOD"]
[393035933,1762236659134,-456.0328646,0.00044931,120]
[393035934,1762236659143,-554.00125799,0.00044931,120]
[393035935,1762236659152,-346.61192474,0.00044931,120]
[393035936,1762236659161,-500.0,0.00044931,120]
[393035937,1762236659170,-500.0,0.00044931,120]
[393035938,1762236659179,-500.0,0.00044931,120]
[393035939,1762236659188,-500.0,0.00044931,120]
[393035940,1762236659197,-500.0,0.00044931,120]
[393035941,1762236659206,-500.0,0.00044931,2]
[393035942,1762236659215,-1518.66,0.00044931,120]
[393035943,1762236659224,-500.0,0.00044931,120]
[393035944,1762236659233,-500.0,0.00044931,120]
[393035945,1762236659241,-510.17585048,0.00044931,120]
[393035946,1762236659251,-279.003591,0.00044931,120]
[393035947,1762236659260,-609.19718876,0.00044931,120]
[393035948,1762236659269,-495.03477912,0.00044931,120]
[393035949,1762236659278,-500.0,0.00044931,2]
[393035950,1762236659287,-500.0,0.00044931,120]
[393035951,1762236659300,-50004.82976988,0.00045,120]
[393035952,1762236659310,-966.88159219,0.00045,2]
[393035953,1762236659320,-191.13100663,0.00045,120]
[393035954,1762236659329,-199.999999,0.00045,120]
[393035955,1762236659340,-1000.0,0.00045,120]
[393035956,1762236659349,-249.0,0.00045,120]
[393035957,1762236659359,-1493.0,0.00045,120]
[393035958,1762236659368,-1000.0,0.00045,120]
[393035959,1762236659381,-51955.31000266,0.00045,30]
[393035960,1762236659390,-221.88313722,0.00045,120]
[393035961,1762236659399,-10000.0,0.00045,20]
[393035962,1762236659407,-500.0,0.00045205,120]
[393035963,1762236659417,-1000.0,0.00045205,2]
[393035964,1762236659426,-500.0,0.00045205,120]
[393035965,1762236659435,-500.0,0.00045205,120]
[393035966,1762236659444,-500.0,0.00045205,120]
[393035967,1762236659454,-430.75801245,0.00045205,120]
[393035968,1762236659463,-500.0,0.00045205,120]
[393035969,1762236659473,-1000.0,0.00045205,2]
[393035970,1762236659483,-500.0,0.00045205,120]
[393035971,1762236659493,-361.18452246,0.00045205,120]
[393035972,1762236659503,-500.0,0.00045205,120]
[393035973,1762236659512,-500.0,0.00045205,120]
[393035974,1762236659522,-529.61690409,0.00045205,120]
[393035975,1762236659532,-500.0,0.00045205,120]
[393035976,1762236659543,-500.0,0.00045205,120]
[393035977,1762236659552,-584.53277017,0.00045205,120]
[393035978,1762236659561,-2588.11,0.00045205,120]
[393035979,1762236659570,-500.0,0.00045205,120]
[393035980,1762236659579,-500.0,0.00045205,120]
[393035981,1762236659589,-500.0,0.00045205,120]
[393035982,1762236659598,-363.80465612,0.00045205,120]
[393035983,1762236659607,-500.0,0.00045205,120]
[393035984,1762236659616,-500.0,0.00045205,120]
[393035985,1762236659625,-241.04603621,0.00045205,120]
[393035986,1762236659635,-500.0,0.00045205,120]
[393035987,1762236659644,-500.0,0.00045205,120]
[393035988,1762236659653,-500.0,0.00045205,120]
[393035989,1762236659662,-203.97256307,0.00045205,120]
[393035990,1762236659671,-2012.97,0.00045205,2]
[393035991,1762236659680,-500.0,0.00045205,120]
[393035992,1762236659689,-500.0,0.00045205,120]
[393035993,1762236659698,-500.0,0.00045205,120]
[393035994,1762236659708,-500.0,0.00045205,120]
[393035995,1762236659717,-4509.81,0.00045205,15]
[393035996,1762236659727,-500.0,0.00045205,120]
[393035997,1762236659736,-500.0,0.00045205,120]
[393035998,1762236659745,-435.84218311,0.00045205,120]
[393035999,1762236659754,-1000.0,0.00045205,2]
[393036000,1762236659763,-500.0,0.00045205,120]
[393036001,1762236659772,-570.01115889,0.00045205,120]
[393036002,1762236659781,-174.8769991,0.00045205,120]
[393036003,1762236659791,-500.0,0.00045205,10]
[393036004,1762236659800,-500.0,0.00045205,30]
[393036005,1762236659809,-500.0,0.00045205,120]
[393036006,1762236659818,-500.0,0.00045205,120]
[393036007,1762236659827,-500.0,0.00045205,120]
[393036008,1762236659837,-500.0,0.00045205,120]
[393036009,1762236659846,-500.0,0.00045205,120]
[393036010,1762236659855,-503.4614837,0.00045205,120]
[393036011,1762236659864,-500.0,0.00045205,120]
[393036012,1762236659937,-500.0,0.00045205,120]
[393036013,1762236659955,-500.0,0.00045205,120]
[393036014,1762236659965,-500.0,0.00045205,120]
[393036015,1762236659974,-500.0,0.00045205,120]
[393036016,1762236659983,-500.0,0.00045205,120]
[393036017,1762236659992,-500.0,0.00045205,120]
[393036018,1762236660002,-500.0,0.00045205,2]
[393036019,1762236660011,-500.0,0.00045205,120]
[393036020,1762236660020,-500.0,0.00045205,120]
[393036021,1762236660030,-2979.34,0.00045205,45]
[393036022,1762236660041,-500.0,0.00045205,120]
[393036023,1762236660051,-500.0,0.00045205,120]
[393036024,1762236660061,-500.0,0.00045205,120]
[393036025,1762236660070,-500.0,0.00045205,120]
[393036026,1762236660081,-500.0,0.00045205,120]
[393036027,1762236660090,-500.0,0.00045205,120]
[393036028,1762236660099,-172.65052577,0.00045205,120]
[393036029,1762236660108,-500.0,0.00045205,120]
[393036030,1762236660117,-559.47,0.00045205,120]
[393036031,1762236660126,-3364.51,0.00045205,120]
[393036032,1762236660135,-500.0,0.00045205,120]
[393036033,1762236660144,-500.0,0.00045205,120]
[393036034,1762236660154,-500.0,0.00045205,120]
[393036035,1762236660163,-500.0,0.00045205,120]
[393036036,1762236660173,-500.0,0.00045205,120]
[393036037,1762236660182,-455.71637442,0.00045205,120]
[393036038,1762236660191,-500.0,0.00045205,120]
[393036039,1762236660199,-500.0,0.00045205,60]
[393036040,1762236660208,-500.0,0.00045205,120]
[393036041,1762236660217,-500.0,0.00045205,120]
[393036042,1762236660226,-2331.85,0.00045205,120]
[393036043,1762236660235,-500.0,0.00045205,120]
[393036044,1762236660244,-500.0,0.00045205,120]
[393036045,1762236660253,-393.00706108,0.00045205,120]
[393036046,1762236660263,-175.7905377,0.00045205,120]
[393036047,1762236660272,-500.0,0.00045205,21]
[393036048,1762236660282,-500.0,0.00045205,120]
[393036049,1762236660294,-500.0,0.00045205,3]
[393036050,1762236660307,-500.0,0.00045205,120]
[393036051,1762236660316,-500.0,0.00045205,120]
[393036052,1762236660326,-297.212238,0.00045205,120]
[393036053,1762236660336,-467.23263858,0.00045205,120]
[393036054,1762236660347,-500.0,0.00045205,120]
[393036055,1762236660357,-500.0,0.00045205,120]
[393036056,1762236660366,-500.0,0.00045205,120]
[393036057,1762236660376,-430.97760375,0.00045205,120]
[393036058,1762236660385,-500.0,0.00045205,120]
[393036059,1762236660395,-429.51400742,0.00045205,120]
[393036060,1762236660404,-500.0,0.00045205,120]
[393036061,1762236660413,-500.0,0.00045205,120]
[393036062,1762236660423,-500.0,0.00045205,120]
[393036063,1762236660432,-500.0,0.00045205,120]
[393036064,1762236660442,-500.0,0.00045205,120]
[393036065,1762236660451,-500.0,0.00045205,120]
[393036066,1762236660460,-500.0,0.00045205,120]
[393036067,1762236660469,-500.0,0.00045205,120]
[393036068,1762236660479,-500.0,0.00045205,120]
[393036069,1762236660489,-500.0,0.00045205,120]
[393036070,1762236660499,-500.0,0.00045205,120]
[393036071,1762236660508,-500.0,0.00045205,120]
[393036072,1762236660517,-2020.09,0.00045205,120]
[393036073,1762236660527,-500.0,0.00045205,120]
[393036074,1762236660536,-500.0,0.00045205,120]
[393036075,1762236660548,-500.0,0.00045205,120]
[393036076,1762236660559,-500.0,0.00045205,120]
[393036077,1762236660569,-500.0,0.00045205,120]
[393036078,1762236660578,-500.0,0.00045205,120]
[393036079,1762236660588,-500.0,0.00045205,120]
[393036080,1762236660598,-500.0,0.00045205,120]
[393036081,1762236660607,-500.0,0.00045205,120]
[393036082,1762236660616,-500.0,0.00045205,120]
[393036083,1762236660626,-500.0,0.00045205,120]
[393036084,1762236660635,-641.4123313,0.00045205,120]
[393036085,1762236660644,-500.0,0.00045205,120]
[393036086,1762236660653,-500.0,0.00045205,120]
[393036087,1762236660662,-500.0,0.00045205,120]
[393036088,1762236660672,-501.28262695,0.00045205,2]
[393036089,1762236660681,-1518.66,0.00045205,120]
[393036090,1762236660691,-500.0,0.00045205,120]
[393036091,1762236660700,-500.0,0.00045205,120]
[393036092,1762236660709,-500.0,0.00045205,2]
[393036093,1762236660718,-192.38570315,0.00045205,120]
[393036094,1762236660727,-1900.0,0.00045206,60]
[393036095,1762236660736,-2259.3414356,0.00045225,2]
[393036096,1762236660745,-200.0,0.000453,120]
[393036097,1762236660755,-274.23957614,0.000454,120]
[393036098,1762236660764,-795129.9142,0.00045444,30]
[393036099,1762236660773,-500.0,0.00045479,120]
[393036100,1762236660783,-1000.0,0.00045479,2]
[393036101,1762236660797,-500.0,0.00045479,120]
[393036102,1762236660806,-500.0,0.00045479,120]
[393036103,1762236660816,-500.0,0.00045479,120]
[393036104,1762236660825,-237.14357576,0.00045479,120]
[393036105,1762236660834,-454.16498958,0.00045479,2]
[393036106,1762236660843,-524.7732858,0.00045479,120]
[393036107,1762236660852,-387.29677359,0.00045479,120]
[393036108,1762236660861,-312.63886591,0.00045479,120]
[393036109,1762236660870,-500.0,0.00045479,120]
[393036110,1762236660879,-500.0,0.00045479,120]
[393036111,1762236660888,-2588.11,0.00045479,120]
[393036112,1762236660897,-500.0,0.00045479,120]
[393036113,1762236660906,-325.2453256,0.00045479,120]
[393036114,1762236660915,-626.2394175,0.00045479,120]
[393036115,1762236660924,-500.0,0.00045479,120]
[393036116,1762236660933,-246.72123769,0.00045479,120]
[393036117,1762236660942,-500.0,0.00045479,120]
[393036118,1762236660951,-500.0,0.00045479,120]
[393036119,1762236660960,-500.0,0.00045479,120]
[393036120,1762236660969,-2012.97,0.00045479,2]
[393036121,1762236660978,-500.0,0.00045479,120]
[393036122,1762236660987,-500.0,0.00045479,120]
[393036123,1762236660996,-500.0,0.00045479,120]
[393036124,1762236661004,-500.0,0.00045479,120]
[393036125,1762236661013,-4509.81,0.00045479,15]
[393036126,1762236661022,-500.0,0.00045479,120]
[393036127,1762236661031,-500.0,0.00045479,120]
[393036128,1762236661042,-964.55662037,0.00045479,2]
[393036129,1762236661051,-500.0,0.00045479,120]
[393036130,1762236661062,-500.0,0.00045479,10]
[393036131,1762236661072,-304.08333734,0.00045479,30]
[393036132,1762236661081,-500.0,0.00045479,120]
[393036133,1762236661090,-500.0,0.00045479,120]
[393036134,1762236661099,-500.0,0.00045479,120]
[393036135,1762236661110,-500.0,0.00045479,120]
[393036136,1762236661119,-500.0,0.00045479,120]
[393036137,1762236661129,-578.02156637,0.00045479,120]
[393036138,1762236661138,-500.0,0.00045479,120]
[393036139,1762236661148,-500.0,0.00045479,120]
[393036140,1762236661158,-500.0,0.00045479,120]
[393036141,1762236661168,-500.0,0.00045479,120]
[393036142,1762236661178,-500.0,0.00045479,120]
[393036143,1762236661187,-500.0,0.00045479,120]
[393036144,1762236661196,-500.0,0.00045479,2]
[393036145,1762236661206,-500.0,0.00045479,120]
[393036146,1762236661215,-500.0,0.00045479,120]
[393036147,1762236661224,-2979.34,0.00045479,45]
[393036148,1762236661233,-500.0,0.00045479,120]
[393036149,1762236661243,-369.91043416,0.00045479,120]
[393036150,1762236661252,-500.0,0.00045479,120]
[393036151,1762236661262,-500.0,0.00045479,120]
[393036152,1762236661271,-500.0,0.00045479,120]
[393036153,1762236661280,-500.0,0.00045479,120]
[393036154,1762236661292,-227.5437664,0.00045479,120]
[393036155,1762236661305,-559.47,0.00045479,120]
[393036156,1762236661321,-3364.51,0.00045479,120]
[393036157,1762236661333,-500.0,0.00045479,120]
[393036158,1762236661343,-500.0,0.00045479,120]
[393036159,1762236661355,-500.0,0.00045479,120]
[393036160,1762236661366,-500.0,0.00045479,120]
[393036161,1762236661376,-500.0,0.00045479,120]
[393036162,1762236661386,-500.0,0.00045479,120]
[393036163,1762236661395,-500.0,0.00045479,60]
[393036164,1762236661405,-500.0,0.00045479,120]
[393036165,1762236661415,-500.0,0.00045479,120]
[393036166,1762236661425,-2331.85,0.00045479,120]
[393036167,1762236661435,-500.0,0.00045479,120]
[393036168,1762236661445,-500.0,0.00045479,120]
[393036169,1762236661455,-500.0,0.00045479,21]
[393036170,1762236661465,-500.0,0.00045479,120]
[393036171,1762236661475,-500.0,0.00045479,3]
[393036172,1762236661484,-500.0,0.00045479,120]
[393036173,1762236661494,-500.0,0.00045479,120]
[393036174,1762236661503,-500.0,0.00045479,120]
[393036175,1762236661513,-500.0,0.00045479,120]
[393036176,1762236661523,-500.0,0.00045479,120]
[393036177,1762236661533,-500.0,0.00045479,120]
[393036178,1762236661545,-500.0,0.00045479,120]
[393036179,1762236661554,-500.0,0.00045479,120]
[393036180,1762236661564,-500.0,0.00045479,120]
[393036181,1762236661573,-500.0,0.00045479,120]
[393036182,1762236661583,-500.0,0.00045479,120]
[393036183,1762236661592,-500.0,0.00045479,120]
[393036184,1762236661602,-500.0,0.00045479,120]
[393036185,1762236661611,-500.0,0.00045479,120]
[393036186,1762236661620,-500.0,0.00045479,120]
[393036187,1762236661630,-500.0,0.00045479,120]
[393036188,1762236661640,-265.28455568,0.00045479,120]
[393036189,1762236661649,-500.0,0.00045479,120]
[393036190,1762236661659,-2020.09,0.00045479,120]
[393036191,1762236661668,-500.0,0.00045479,120]
[393036192,1762236661678,-500.0,0.00045479,120]
[393036193,1762236661687,-500.0,0.00045479,120]
[393036194,1762236661696,-507.34397463,0.00045479,120]
[393036195,1762236661707,-500.0,0.00045479,120]
[393036196,1762236661716,-500.0,0.00045479,120]
[393036197,1762236661726,-500.0,0.00045479,120]
[393036198,1762236661735,-500.0,0.00045479,120]
[393036199,1762236661744,-500.0,0.00045479,120]
[393036200,1762236661753,-500.0,0.00045479,120]
[393036201,1762236661762,-500.0,0.00045479,120]
[393036202,1762236661771,-504.85004435,0.00045479,120]
[393036203,1762236661780,-500.0,0.00045479,120]
[393036204,1762236661792,-500.0,0.00045479,120]
[393036205,1762236661801,-1518.66,0.00045479,120]
[393036206,1762236661810,-500.0,0.00045479,120]
[393036207,1762236661819,-500.0,0.00045479,120]
[393036208,1762236661828,-500.0,0.00045479,2]
[393036209,1762236661907,-150.59066832,0.000455,60]
[393036210,1762236661919,-10396.4,0.00045715,2]
[393036211,1762236661928,-500.0,0.00045753,120]
[393036212,1762236661937,-1000.0,0.00045753,2]
[393036213,1762236661946,-500.0,0.00045753,120]
[393036214,1762236661955,-500.0,0.00045753,120]
[393036215,1762236661964,-500.0,0.00045753,120]
[393036216,1762236661980,-500.0,0.00045753,120]
[393036217,1762236661990,-500.0,0.00045753,120]
[393036218,1762236661999,-2588.11,0.00045753,120]
[393036219,1762236662008,-500.0,0.00045753,120]
[393036220,1762236662017,-500.0,0.00045753,120]
[393036221,1762236662026,-500.0,0.00045753,120]
[393036222,1762236662036,-183.37176397,0.00045753,120]
[393036223,1762236662047,-500.0,0.00045753,120]
[393036224,1762236662056,-2012.97,0.00045753,2]
[393036225,1762236662065,-500.0,0.00045753,120]
[393036226,1762236662075,-500.0,0.00045753,120]
[393036227,1762236662084,-500.0,0.00045753,120]
[393036228,1762236662093,-500.0,0.00045753,120]
[393036229,1762236662103,-4509.81,0.00045753,15]
[393036230,1762236662112,-500.0,0.00045753,120]
[393036231,1762236662122,-500.0,0.00045753,120]
[393036232,1762236662131,-589.17094346,0.00045753,120]
[393036233,1762236662140,-500.0,0.00045753,10]
[393036234,1762236662150,-500.0,0.00045753,120]
[393036235,1762236662160,-233.46786807,0.00045753,120]
[393036236,1762236662170,-164.72044557,0.00045753,120]
[393036237,1762236662179,-172.64319029,0.00045753,120]
[393036238,1762236662188,-500.0,0.00045753,120]
[393036239,1762236662197,-500.0,0.00045753,120]
[393036240,1762236662207,-500.0,0.00045753,120]
[393036241,1762236662216,-500.0,0.00045753,120]
[393036242,1762236662226,-500.0,0.00045753,120]
[393036243,1762236662235,-500.0,0.00045753,120]
[393036244,1762236662244,-500.0,0.00045753,120]
[393036245,1762236662254,-500.0,0.00045753,2]
[393036246,1762236662263,-500.0,0.00045753,120]
[393036247,1762236662272,-500.0,0.00045753,120]
[393036248,1762236662281,-2979.34,0.00045753,45]
[393036249,1762236662292,-272.79408339,0.00045753,120]
[393036250,1762236662304,-500.0,0.00045753,120]
[393036251,1762236662313,-500.0,0.00045753,120]
[393036252,1762236662323,-446.70437089,0.00045753,120]
[393036253,1762236662333,-500.0,0.00045753,120]
[393036254,1762236662343,-559.47,0.00045753,120]
[393036255,1762236662352,-3364.51,0.00045753,120]
[393036256,1762236662361,-500.0,0.00045753,120]
[393036257,1762236662371,-500.0,0.00045753,120]
[393036258,1762236662382,-500.0,0.00045753,120]
[393036259,1762236662392,-500.0,0.00045753,120]
[393036260,1762236662402,-500.0,0.00045753,120]
[393036261,1762236662411,-441.06006496,0.00045753,120]
[393036262,1762236662420,-289.637239,0.00045753,60]
[393036263,1762236662430,-500.0,0.00045753,120]
[393036264,1762236662439,-500.0,0.00045753,120]
[393036265,1762236662448,-2331.85,0.00045753,120]
[393036266,1762236662458,-500.0,0.00045753,120]
[393036267,1762236662467,-500.0,0.00045753,120]
[393036268,1762236662477,-188.94352292,0.00045753,21]
[393036269,1762236662487,-500.0,0.00045753,120]
[393036270,1762236662497,-500.0,0.00045753,3]
[393036271,1762236662506,-548.15191876,0.00045753,120]
[393036272,1762236662515,-500.0,0.00045753,120]
[393036273,1762236662525,-500.0,0.00045753,120]
[393036274,1762236662535,-500.0,0.00045753,120]
[393036275,1762236662545,-272.39043724,0.00045753,120]
[393036276,1762236662554,-500.0,0.00045753,120]
[393036277,1762236662564,-500.0,0.00045753,120]
[393036278,1762236662573,-310.33888081,0.00045753,120]
[393036279,1762236662583,-551.89633774,0.00045753,120]
[393036280,1762236662592,-500.0,0.00045753,120]
[393036281,1762236662601,-500.0,0.00045753,120]
[393036282,1762236662611,-500.0,0.00045753,120]
[393036283,1762236662620,-500.0,0.00045753,120]
[393036284,1762236662629,-224.87077609,0.00045753,120]
[393036285,1762236662638,-500.0,0.00045753,120]
[393036286,1762236662647,-500.0,0.00045753,120]
[393036287,1762236662656,-500.0,0.00045753,120]
[393036288,1762236662666,-2020.09,0.00045753,120]
[393036289,1762236662675,-648.34077869,0.00045753,120]
[393036290,1762236662685,-500.0,0.00045753,120]
[393036291,1762236662694,-500.0,0.00045753,120]
[393036292,1762236662703,-500.0,0.00045753,120]
[393036293,1762236662712,-500.0,0.00045753,120]
[393036294,1762236662721,-500.0,0.00045753,120]
[393036295,1762236662730,-500.0,0.00045753,120]
[393036296,1762236662740,-500.0,0.00045753,120]
[393036297,1762236662749,-501.05519286,0.00045753,120]
[393036298,1762236662758,-265.12532229,0.00045753,120]
[393036299,1762236662767,-327.63268207,0.00045753,120]
[393036300,1762236662776,-500.0,0.00045753,120]
[393036301,1762236662785,-1518.66,0.00045753,120]
[393036302,1762236662796,-500.0,0.00045753,120]
[393036303,1762236662806,-500.0,0.00045753,120]
[393036304,1762236662815,-500.0,0.00045753,2]
[393036305,1762236662824,-273.01512268,0.000459,120]
[393036306,1762236662833,-6956.51222723,0.00046,30]
[393036307,1762236662842,-1000.0,0.00046,120]
[393036308,1762236662851,-200.0,0.00046,120]
[393036309,1762236662861,-200.0,0.00046,120]
[393036310,1762236662870,-200.0,0.00046,120]
[393036311,1762236662879,-200.0,0.00046,120]
[393036312,1762236662889,-200.0,0.00046,120]
[393036313,1762236662898,-200.0,0.00046,120]
[393036314,1762236662908,-500.0,0.00046027,120]
[393036315,1762236662917,-1000.0,0.00046027,2]
[393036316,1762236662927,-285.92594131,0.00046027,120]
[393036317,1762236662940,-500.0,0.00046027,120]
[393036318,1762236662949,-500.0,0.00046027,120]
[393036319,1762236662959,-500.0,0.00046027,120]
[393036320,1762236662970,-231.09770646,0.00046027,120]
[393036321,1762236662980,-2588.11,0.00046027,120]
[393036322,1762236662989,-234.38655088,0.00046027,120]
[393036323,1762236662999,-444.93,0.00046027,120]
[393036324,1762236663009,-500.0,0.00046027,120]
[393036325,1762236663018,-500.0,0.00046027,120]
[393036326,1762236663028,-2012.97,0.00046027,2]
[393036327,1762236663038,-500.0,0.00046027,120]
[393036328,1762236663050,-500.0,0.00046027,120]
[393036329,1762236663060,-500.0,0.00046027,120]
[393036330,1762236663071,-472.75803345,0.00046027,120]
[393036331,1762236663080,-4509.81,0.00046027,15]
[393036332,1762236663090,-500.0,0.00046027,120]
[393036333,1762236663100,-500.0,0.00046027,120]
[393036334,1762236663109,-500.0,0.00046027,10]
[393036335,1762236663120,-500.0,0.00046027,120]
[393036336,1762236663129,-219.09218861,0.00046027,120]
[393036337,1762236663139,-500.0,0.00046027,120]
[393036338,1762236663149,-500.0,0.00046027,120]
[393036339,1762236663158,-500.0,0.00046027,120]
[393036340,1762236663168,-533.24791319,0.00046027,120]
[393036341,1762236663178,-500.0,0.00046027,120]
[393036342,1762236663188,-500.0,0.00046027,120]
[393036343,1762236663197,-500.0,0.00046027,2]
[393036344,1762236663207,-500.0,0.00046027,120]
[393036345,1762236663217,-500.0,0.00046027,120]
[393036346,1762236663227,-2979.34,0.00046027,45]
[393036347,1762236663237,-500.0,0.00046027,120]
[393036348,1762236663246,-500.0,0.00046027,120]
[393036349,1762236663256,-500.0,0.00046027,120]
[393036350,1762236663265,-559.47,0.00046027,120]
[393036351,1762236663275,-3364.51,0.00046027,120]
[393036352,1762236663285,-500.0,0.00046027,120]
[393036353,1762236663300,-500.0,0.00046027,120]
[393036354,1762236663313,-500.0,0.00046027,120]
[393036355,1762236663323,-500.0,0.00046027,120]
[393036356,1762236663333,-500.0,0.00046027,120]
[393036357,1762236663344,-500.0,0.00046027,120]
[393036358,1762236663353,-500.0,0.00046027,120]
[393036359,1762236663363,-2331.85,0.00046027,120]
[393036360,1762236663373,-334.62325564,0.00046027,120]
[393036361,1762236663384,-500.0,0.00046027,120]
[393036362,1762236663394,-387.298716,0.00046027,120]
[393036363,1762236663408,-500.0,0.00046027,3]
[393036364,1762236663418,-500.0,0.00046027,120]
[393036365,1762236663428,-500.0,0.00046027,120]
[393036366,1762236663437,-500.0,0.00046027,120]
[393036367,1762236663447,-500.0,0.00046027,120]
[393036368,1762236663456,-500.0,0.00046027,120]
[393036369,1762236663466,-500.0,0.00046027,120]
[393036370,1762236663476,-268.8514355,0.00046027,120]
[393036371,1762236663485,-500.0,0.00046027,120]
[393036372,1762236663494,-500.0,0.00046027,120]
[393036373,1762236663503,-500.0,0.00046027,120]
[393036374,1762236663512,-500.0,0.00046027,120]
[393036375,1762236663522,-500.0,0.00046027,120]
[393036376,1762236663531,-2020.09,0.00046027,120]
[393036377,1762236663542,-500.0,0.00046027,120]
[393036378,1762236663551,-500.0,0.00046027,120]
[393036379,1762236663560,-500.0,0.00046027,120]
[393036380,1762236663570,-288.0694452,0.00046027,120]
[393036381,1762236663579,-500.0,0.00046027,120]
[393036382,1762236663588,-496.97350944,0.00046027,120]
[393036383,1762236663597,-229.24492312,0.00046027,120]
[393036384,1762236663606,-500.0,0.00046027,120]
[393036385,1762236663615,-1518.66,0.00046027,120]
[393036386,1762236663624,-500.0,0.00046027,120]
[393036387,1762236663635,-500.0,0.00046027,120]
[393036388,1762236663644,-500.0,0.00046027,2]
[393036389,1762236663653,-227.482555,0.00046143,2]
[393036390,1762236663729,-158.0,0.000462,120]
[393036391,1762236663739,-500.0,0.00046301,120]
[393036392,1762236663749,-842.18159639,0.00046301,2]
[393036393,1762236663758,-293.48418751,0.00046301,120]
[393036394,1762236663768,-500.0,0.00046301,120]
[393036395,1762236663777,-500.0,0.00046301,120]
[393036396,1762236663786,-1761.91712413,0.00046301,120]
[393036397,1762236758266,-826.19287587,0.00046301,120]
[393036398,1762236758276,-258.21711311,0.00046301,120]
[393036399,1762236758286,-500.0,0.00046301,120]
[393036400,1762236758296,-518.59001102,0.00046301,2]
[393036401,1762236903292,202.38704948,0.00037212,60]
[393036402,1762237009292,277.2277564,0.00023288,30]
[393036488,1762237813037,310.33618804,0.00037255,120]
[393036523,1762237838513,-5000.0,0.00020968,3]
[393036524,1762237838523,-3355.33072685,0.0002118,3]
[393036525,1762237838532,-150.0,0.00021502,2]
[393036526,1762237838542,-328.0,0.00021502,2]
[393036527,1762237838552,-264.588354,0.00023185,2]
[393036528,1762237838561,-1000.0,0.000235,2]
[393036529,1762237838571,-300.0,0.00023915,2]
[393036530,1762237838581,-579.8266248,0.00023917,2]
[393036531,1762237838591,-160.0,0.00024009,2]
[393036532,1762237838601,-500.0,0.00024012,2]
[393036533,1762237838612,-500.0,0.00024012,2]
[393036534,1762237838962,-500.0,0.00024012,2]
[393036535,1762237838974,-500.0,0.00024012,2]
[393036536,1762237838984,-452.51340663,0.00024012,2]
[393036537,1762237838994,-500.0,0.00024012,2]
[393036538,1762237839004,-500.0,0.00024012,2]
[393036539,1762237839014,-500.0,0.00024012,2]
[393036540,1762237839024,-500.0,0.00024012,2]
[393036541,1762237839034,-500.0,0.00024012,2]
[393036542,1762237839043,-500.0,0.00024012,2]
[393036543,1762237839053,-500.0,0.00024012,2]
[393036544,1762237839063,-500.0,0.00024012,2]
[393036545,1762237839073,-474.57875831,0.00024012,2]
[393036546,1762237839083,-500.0,0.00024012,2]
[393036547,1762237839092,-500.0,0.00024012,2]
[393036548,1762237839101,-500.0,0.00024012,2]
[393036549,1762237839111,-500.0,0.00024012,2]
[393036550,1762237839121,-500.0,0.00024012,2]
[393036551,1762237839130,-500.0,0.00024012,2]